bitfinex-derivatives/quotes_ETHF0:USTF0_20260113
["timestamp","ask_amount","ask_price","bid_price","bid_amount"]
[1768301211857,1.08956585,3132.4,3131.1,0.13596167]
[1768301212063,0.94363914,3132.3,3131.1,0.13596167]
[1768301212364,1.08956585,3132.4,3131.1,0.13596167]
[1768301212568,0.94374507,3132.3,3131.1,0.13596167]
[1768301212761,1.08956585,3132.4,3131.1,0.13596167]
[1768301213069,0.94373966,3132.3,3131.1,0.13596167]
[1768301213259,1.08956585,3132.4,3131.1,0.13596167]
[1768301213561,0.94385896,3132.3,3131.1,0.13596167]
[1768301213760,1.08956585,3132.4,3131.1,0.13596167]
[1768301213963,0.94385738,3132.3,3131.1,0.13596167]
[1768301214165,1.08956585,3132.4,3131.1,0.13596167]
[1768301214358,0.94385983,3132.3,3131.1,0.13596167]
[1768301214558,1.08956585,3132.4,3131.1,0.13596167]
[1768301214772,0.94400028,3132.3,3131.1,0.13596167]
[1768301214959,1.08956585,3132.4,3131.1,0.13596167]
[1768301215263,1.08956585,3132.5,3131.3,0.13596167]
[1768301215464,0.94418859,3132.4,3131.3,0.13596167]
[1768301215653,0.15976,3132.7,3131.3,0.13596167]
[1768301215857,1.08956585,3132.4,3131.3,0.13596167]
[1768301216059,0.9440512,3132.3,3131.0,0.15985]
[1768301216255,1.08956585,3132.2,3131.0,0.29581167]
[1768301216865,1.08956585,3132.6,3131.1,0.13596167]
[1768301217068,1.33983827,3132.5,3131.1,0.13596167]
[1768301217365,2.03363983,3132.4,3131.1,0.13596167]
[1768301217565,0.94407398,3132.3,3131.1,0.13596167]
[1768301217865,1.08956585,3132.4,3131.1,0.13596167]
[1768301218066,0.94404773,3132.3,3131.1,0.13596167]
[1768301218265,1.08956585,3132.4,3131.1,0.13596167]
[1768301218466,0.9440569,3132.3,3131.1,0.13596167]
[1768301218669,1.08956585,3132.4,3131.1,0.13596167]
[1768301218866,0.9440539,3132.3,3131.1,0.13596167]
[1768301219067,1.08956585,3132.4,3131.1,0.13596167]
[1768301219261,0.94405459,3132.3,3131.1,0.13596167]
[1768301219466,1.08956585,3132.4,3131.1,0.13596167]
[1768301219666,0.94410065,3132.3,3131.1,0.13596167]
[1768301219965,1.08956585,3132.4,3131.1,0.13596167]
[1768301220264,0.94410149,3132.3,3131.1,0.13596167]
[1768301220565,1.08956585,3132.4,3131.1,0.13596167]
[1768301220764,0.94393498,3132.3,3131.1,0.13596167]
[1768301220968,1.08956585,3132.4,3131.1,0.13596167]
[1768301221267,0.9438682,3132.3,3131.1,0.13596167]
[1768301221468,1.08956585,3132.4,3131.1,0.13596167]
[1768301221658,0.94361179,3132.3,3131.1,0.13596167]
[1768301221955,1.08956585,3132.4,3131.1,0.13596167]
[1768301222159,0.94360262,3132.3,3131.1,0.13596167]
[1768301222365,1.08956585,3132.4,3131.1,0.13596167]
[1768301222669,0.94360456,3132.3,3131.1,0.13596167]
[1768301222866,1.08956585,3132.4,3131.1,0.13596167]
[1768301223056,0.94360694,3132.3,3131.5,1.08956585]
[1768301223260,0.94360694,3132.3,3131.3,0.13596167]
[1768301223261,1.08956585,3132.7,3131.4,0.13596167]
[1768301223568,1.33930557,3132.6,3131.4,0.13596167]
[1768301223768,0.94370046,3132.5,3131.4,0.13596167]
[1768301224067,0.94370046,3132.4,3131.4,0.13596167]
[1768301224266,1.08956585,3132.7,3131.4,0.13596167]
[1768301224465,0.94373351,3132.6,3131.4,0.13596167]
[1768301224666,0.94373351,3132.5,3131.4,0.13596167]
[1768301224965,0.94373351,3132.4,3131.4,0.13596167]
[1768301225167,1.08956585,3132.7,3131.4,0.13596167]
[1768301225470,0.94373318,3132.6,3131.4,1.22552752]
[1768301225767,0.94373318,3132.5,3131.5,0.14351345]
[1768301225964,1.08956585,3132.7,3131.5,0.14351345]
[1768301226170,0.95185828,3132.6,3131.5,0.14351345]
[1768301226368,0.95185828,3132.5,3131.5,0.14351345]
[1768301226567,1.08956585,3132.7,3131.5,0.14351345]
[1768301226769,0.95174962,3132.6,3131.5,0.14351345]
[1768301226969,1.08956585,3132.8,3131.5,0.14351345]
[1768301227171,0.95177223,3132.7,3131.6,0.14351345]
[1768301227369,1.08956585,3132.8,3131.6,0.14351345]
[1768301227571,0.95151614,3132.7,3131.6,0.14351345]
[1768301227771,1.08956585,3132.8,3131.6,0.14351345]
[1768301227972,0.95118628,3132.7,3131.6,0.14351345]
[1768301228165,1.08956585,3132.8,3131.6,0.14351345]
[1768301229471,1.08956585,3132.8,3131.9,1.08865482]
[1768301229472,1.08865482,3132.8,3131.9,1.08865482]
[1768301230668,1.24839482,3133.2,3131.6,0.14351345]
[1768301230669,1.08865482,3132.6,3131.6,0.14351345]
[1768301230874,1.08865482,3132.4,3131.6,0.14351345]
[1768301233672,1.24839482,3133.2,3131.6,0.14351345]
[1768301233872,1.08865482,3132.6,3131.7,1.08865482]
[1768301235775,1.08865482,3132.6,3131.6,0.14351345]
[1768301236370,1.08865482,3132.6,3131.7,1.08865482]
[1768301236574,1.08865482,3132.6,3131.7,1.23423595]
[1768301239369,1.08865482,3132.7,3131.7,1.23423595]
[1768301240777,1.08865482,3132.7,3131.7,0.14558113]
[1768301241177,1.24839482,3133.2,3131.7,0.14558113]
[1768301241377,1.08865482,3132.6,3131.7,0.14558113]
[1768301241982,1.08865482,3132.6,3131.7,1.23423595]
[1768301243676,1.08865482,3132.6,3131.7,0.14558113]
[1768301243877,1.08865482,3132.7,3131.7,1.23423595]
[1768301244183,1.08865482,3132.7,3131.9,1.08865482]
[1768301244377,1.08865482,3133.2,3132.2,1.08865482]
[1768301244682,1.08865482,3133.0,3132.2,1.08865482]
[1768301244870,1.08865482,3133.0,3132.0,1.08865482]
[1768301245981,1.08865482,3133.0,3132.1,1.08865482]
[1768301246883,0.00375156,3133.4,3132.5,1.08865482]
[1768301247081,1.08865482,3133.3,3132.5,1.08865482]
[1768301247285,1.08865482,3133.3,3132.2,0.14558113]
[1768301247286,1.08865482,3133.3,3132.3,1.08865482]
[1768301248080,1.08865482,3133.3,3132.3,1.23423595]
[1768301248382,0.00375156,3133.4,3132.7,1.08865482]
[1768301248680,0.00375156,3133.4,3132.6,1.23423595]
[1768301248883,0.00375156,3133.4,3132.6,0.14558113]
[1768301249182,0.00375156,3133.4,3132.8,1.08865482]
[1768301249383,1.08865482,3133.8,3132.8,1.08865482]
[1768301249882,1.08865482,3133.6,3132.8,1.08865482]
[1768301250276,0.00347811,3133.6,3132.8,1.23423595]
[1768301251882,0.00347811,3133.6,3132.9,0.14558113]
[1768301252281,1.08865482,3133.8,3132.9,0.14558113]
[1768301252474,0.15966,3134.7,3132.9,0.14558113]
[1768301252675,1.08865482,3133.8,3132.9,0.14558113]
[1768301252975,1.08865482,3134.4,3133.0,1.23423595]
[1768301253282,1.08865482,3133.9,3133.1,0.14558113]
[1768301253481,1.08865482,3133.9,3133.0,0.00352201]
[1768301253682,1.08865482,3133.5,3133.0,0.00352201]
[1768301253880,1.08865482,3133.3,3133.0,0.00352201]
[1768301254288,1.08865482,3133.5,3133.0,0.00352201]
[1768301256180,1.08865482,3133.6,3133.0,0.00352201]
[1768301256379,1.08865482,3133.7,3133.0,0.00352201]
[1768301256578,0.16287077,3134.4,3133.0,0.00352201]
[1768301256784,1.08865482,3133.8,3133.0,0.00352201]
[1768301258186,1.25152559,3134.4,3133.0,0.00352201]
[1768301258490,1.08865482,3133.8,3133.0,0.00352201]
[1768301262491,1.08865482,3133.8,3133.0,1.09217683]
[1768301263290,0.00319077,3134.4,3133.1,0.13399873]
[1768301263592,1.08865482,3134.2,3133.4,1.08865482]
[1768301263784,1.08865482,3134.0,3133.1,0.13399873]
[1768301263984,1.08865482,3133.8,3133.1,0.13399873]
[1768301265181,0.00319077,3134.4,3133.2,1.08865482]
[1768301265388,1.08865482,3134.0,3133.2,1.08865482]
[1768301265882,1.08865482,3134.0,3133.1,1.22265355]
[1768301266090,1.08865482,3134.2,3133.3,1.08865482]
[1768301267288,1.08865482,3134.0,3133.0,0.00352201]
[1768301267488,1.08865482,3134.0,3133.1,1.08865482]
[1768301269793,1.08865482,3134.1,3133.1,1.22265355]
[1768301272494,1.08865482,3134.1,3133.3,1.08865482]
[1768301273091,1.08865482,3133.8,3133.0,0.00352201]
[1768301273297,1.08865482,3133.2,3132.5,0.13399873]
[1768301273486,1.08865482,3133.2,3132.5,1.22265355]
[1768301273682,1.08865482,3133.4,3132.5,1.22265355]
[1768301274294,1.08865482,3133.4,3132.5,1.22528066]
[1768301275584,1.08865482,3133.4,3132.6,1.08865482]
[1768301276599,1.08865482,3133.4,3132.5,0.13662584]
[1768301276794,1.08865482,3133.4,3132.5,1.22528066]
[1768301278097,0.15969,3134.2,3132.5,1.22528066]
[1768301278294,1.08865482,3133.5,3132.5,1.22528066]
[1768301279598,1.08865482,3133.3,3132.5,1.22528066]
[1768301282100,1.08865482,3133.3,3132.5,0.13662584]
[1768301282506,1.08865482,3133.8,3132.5,0.13662584]
[1768301282804,1.08865482,3133.5,3132.6,1.08865482]
[1768301285801,1.08865482,3133.5,3132.6,1.23035248]
[1768301286307,1.08865482,3133.7,3132.8,1.23035248]
[1768301289612,0.15969,3134.2,3132.9,0.14169766]
[1768301289909,1.08865482,3133.7,3132.9,0.14169766]
[1768301291313,1.08805823,3133.9,3132.9,0.14169766]
[1768301294413,0.15969,3134.2,3132.9,0.14169766]
[1768301294622,1.08805823,3133.9,3132.9,0.14169766]
[1768301295912,0.15969,3134.2,3132.9,0.14169766]
[1768301296211,0.94335998,3134.1,3133.0,0.14613646]
[1768301296412,1.08805823,3134.2,3133.0,0.14613646]
[1768301296611,0.94351347,3134.1,3133.0,0.14613646]
[1768301296813,0.00319077,3134.4,3133.0,0.14613646]
[1768301297013,2.03156656,3134.3,3133.0,0.14613646]
[1768301297217,0.94350833,3134.2,3133.0,0.14613646]
[1768301301018,0.94350833,3134.2,3133.1,0.14613646]
[1768301301709,0.00319077,3134.4,3133.1,0.14613646]
[1768301302011,0.9438741,3134.3,3133.1,0.14613646]
[1768301302216,0.00319077,3134.4,3133.1,0.14613646]
[1768301302418,0.94379529,3134.3,3133.1,0.14613646]
[1768301302617,0.00319077,3134.4,3133.1,0.14613646]
[1768301302919,0.94385423,3134.3,3133.1,0.14613646]
[1768301303217,0.00319077,3134.4,3133.1,0.14613646]
[1768301303516,0.94385424,3134.3,3133.1,0.14613646]
[1768301303717,0.00319077,3134.4,3133.1,0.14613646]
[1768301303918,0.94367316,3134.3,3133.1,0.14613646]
[1768301304222,0.00319077,3134.4,3133.1,0.14613646]
[1768301304517,0.94367219,3134.3,3133.1,0.14613646]
[1768301304817,0.00319077,3134.4,3133.1,0.14613646]
[1768301305020,0.94352676,3134.3,3133.1,0.14613646]
[1768301305218,0.00319077,3134.4,3133.1,0.14613646]
[1768301305518,0.94352795,3134.3,3133.1,0.14613646]
[1768301305818,0.00319077,3134.4,3133.1,0.14613646]
[1768301306120,0.94340748,3134.3,3133.1,0.14613646]
[1768301306318,0.00319077,3134.4,3133.1,0.14613646]
[1768301306521,0.00319077,3134.4,3133.5,0.14613646]
[1768301308120,0.00319077,3134.4,3133.6,0.14613646]
[1768301310718,0.15963,3135.2,3133.6,0.14613646]
[1768301310921,1.08805823,3135.0,3133.6,0.14613646]
[1768301311122,0.94263513,3134.9,3133.6,0.14613646]
[1768301311318,1.08805823,3135.0,3133.6,0.14613646]
[1768301311626,1.09157693,3135.0,3133.6,0.14613646]
[1768301312326,1.08805823,3134.8,3133.6,0.14613646]
[1768301312722,1.08805823,3134.9,3133.6,0.14613646]
[1768301317234,0.0035187,3135.0,3133.6,0.14613646]
[1768301317528,1.08805823,3134.9,3133.6,0.14613646]
[1768301318725,0.0035187,3135.0,3133.6,0.14613646]
[1768301318921,1.08805823,3134.9,3133.6,0.14613646]
[1768301320932,1.08805823,3134.9,3133.6,1.23419469]
[1768301321132,1.08805823,3134.9,3133.7,0.1409947]
[1768301323024,0.0035187,3135.0,3133.9,0.1409947]
[1768301328037,1.08805823,3134.9,3133.9,0.1409947]
[1768301330239,0.0035187,3135.0,3133.9,0.1409947]
[1768301331339,0.94337349,3134.9,3133.9,0.1409947]
[1768301331534,0.0035187,3135.0,3133.9,0.1409947]
[1768301331740,0.94348382,3134.9,3133.9,0.1409947]
[1768301332045,0.0035187,3135.0,3133.9,0.1409947]
[1768301332233,0.94348324,3134.9,3133.9,0.1409947]
[1768301332434,0.0035187,3135.0,3133.9,0.1409947]
[1768301332634,0.94362388,3134.9,3133.9,0.1409947]
[1768301332834,0.0035187,3135.0,3133.9,0.1409947]
[1768301333039,0.94362841,3134.9,3133.9,0.1409947]
[1768301333332,0.0035187,3135.0,3133.9,0.1409947]
[1768301333527,0.94378081,3134.9,3133.9,0.1409947]
[1768301333735,0.0035187,3135.0,3133.9,0.1409947]
[1768301333936,0.9437808,3134.9,3133.9,0.1409947]
[1768301334238,0.0035187,3135.0,3133.9,0.1409947]
[1768301334545,0.94378115,3134.9,3133.9,0.1409947]
[1768301334741,0.0035187,3135.0,3133.9,0.1409947]
[1768301334942,0.94397288,3134.9,3133.9,0.1409947]
[1768301335145,0.0035187,3135.0,3133.9,0.1409947]
[1768301335341,0.94397292,3134.9,3133.9,0.1409947]
[1768301335543,0.0035187,3135.0,3133.9,0.1409947]
[1768301335744,0.94426872,3134.9,3133.9,1.22905293]
[1768301335941,0.0035187,3135.0,3134.0,0.1409947]
[1768301336242,0.9442715,3134.9,3134.0,0.1409947]
[1768301336444,0.94462052,3134.8,3134.0,0.1409947]
[1768301336641,0.0035187,3135.0,3134.0,0.1409947]
[1768301336842,0.94462061,3134.9,3134.0,0.1409947]
[1768301337146,0.94462061,3134.8,3134.0,0.1409947]
[1768301337339,0.0035187,3135.0,3134.0,0.1409947]
[1768301337544,0.94475092,3134.9,3134.0,0.1409947]
[1768301337842,0.94475092,3134.8,3134.0,0.1409947]
[1768301338040,0.0035187,3135.0,3134.0,0.1409947]
[1768301338241,0.94467378,3134.9,3134.1,1.22905293]
[1768301338432,0.94467378,3134.8,3134.1,0.1409947]
[1768301338743,0.0035187,3135.0,3134.1,0.1409947]
[1768301338933,0.94474032,3134.9,3134.1,0.1409947]
[1768301339131,0.94474032,3134.8,3134.1,0.1409947]
[1768301339346,0.0035187,3135.0,3134.1,0.1409947]
[1768301339546,0.94482147,3134.9,3134.1,0.1409947]
[1768301339740,0.0035187,3135.0,3134.1,0.1409947]
[1768301340044,0.94482755,3134.9,3134.1,0.1409947]
[1768301340342,0.94495061,3134.8,3134.1,0.1409947]
[1768301340543,0.0035187,3135.0,3134.1,0.1409947]
[1768301340742,0.94495137,3134.9,3134.1,0.1409947]
[1768301340934,0.94495137,3134.8,3134.1,0.1409947]
[1768301341134,0.0035187,3135.0,3134.1,0.1409947]
[1768301341334,0.94489497,3134.9,3134.1,0.1409947]
[1768301341543,0.94489497,3134.8,3134.1,0.1409947]
[1768301341743,0.0035187,3135.0,3134.1,0.1409947]
[1768301341946,0.94486252,3134.9,3134.1,0.1409947]
[1768301342147,1.08805823,3134.7,3133.7,0.3007047]
[1768301342444,1.08805823,3134.9,3133.7,0.3007047]
[1768301342646,0.94485208,3134.8,3133.7,0.1409947]
[1768301342840,1.08805823,3134.9,3133.7,0.1409947]
[1768301343040,0.94486137,3134.8,3133.7,0.1409947]
[1768301343241,1.08805823,3134.9,3133.7,0.1409947]
[1768301343443,0.94486756,3134.8,3133.7,0.1409947]
[1768301343738,1.08805823,3134.9,3133.7,0.1409947]
[1768301343937,0.94487375,3134.8,3133.7,0.1409947]
[1768301344140,0.0035187,3135.0,3133.7,0.1409947]
[1768301344339,0.94487333,3134.9,3133.7,0.1409947]
[1768301344539,0.94487333,3134.8,3133.7,0.1409947]
[1768301344734,0.0035187,3135.0,3133.7,0.1409947]
[1768301344935,0.94488374,3134.9,3133.7,0.1409947]
[1768301345138,0.94488374,3134.8,3133.7,0.1409947]
[1768301345343,1.08805823,3133.8,3132.8,0.13817651]
[1768301346235,1.08805823,3134.4,3132.8,0.13817651]
[1768301346431,1.34122288,3134.3,3132.8,0.13817651]
[1768301346642,0.94327013,3134.2,3132.8,0.13817651]
[1768301346840,2.03132836,3134.1,3132.8,0.13817651]
[1768301347141,0.94327013,3134.0,3132.8,0.13817651]
[1768301348645,0.94327013,3133.9,3133.0,0.13817651]
[1768301348845,0.94327013,3133.8,3133.0,0.13817651]
[1768301349147,1.08805823,3134.4,3133.0,0.13817651]
[1768301349344,0.96187711,3134.3,3133.0,0.13817651]
[1768301349543,0.96187711,3134.2,3133.0,0.13817651]
[1768301349744,0.96187711,3134.1,3133.0,0.13817651]
[1768301349944,0.96187711,3134.0,3133.0,0.13817651]
[1768301350245,0.96187711,3133.9,3133.0,0.13817651]
[1768301350439,2.8418382,3134.9,3133.3,0.13817651]
[1768301350639,1.08805823,3134.7,3133.3,0.13817651]
[1768301350945,0.96230177,3134.6,3133.3,0.13817651]
[1768301351441,1.08768183,3134.2,3133.3,1.22585834]
[1768301351840,1.08768183,3134.2,3133.3,0.13817651]
[1768301356255,1.08768183,3133.8,3132.9,1.38204246]
[1768301356645,1.08768183,3133.8,3133.0,0.13461063]
[1768301356947,1.08768183,3134.0,3133.0,0.13461063]
[1768301357253,1.08768183,3134.0,3133.1,1.08768183]
[1768301360150,1.08768183,3134.0,3133.0,0.13461063]
[1768301360352,1.08768183,3133.8,3133.0,1.22229246]
[1768301361351,1.08768183,3133.8,3133.0,0.13461063]
[1768301361550,1.08768183,3133.6,3132.8,1.08768183]
[1768301362755,1.08768183,3133.6,3132.6,0.13461063]
[1768301362756,1.08768183,3133.6,3132.6,1.22229246]
[1768301362956,1.08768183,3133.6,3132.6,0.13461063]
[1768301363258,1.08768183,3133.6,3132.7,1.08768183]
[1768301364063,1.08768183,3133.6,3132.7,1.22229246]
[1768301364254,1.08768183,3134.0,3133.0,1.08768183]
[1768301365255,1.08768183,3133.8,3133.0,1.08768183]
[1768301365455,1.08768183,3133.9,3133.1,0.13461063]
[1768301367966,0.15968,3134.3,3133.1,0.13461063]
[1768301368167,1.08768183,3133.8,3133.1,0.13461063]
[1768301369470,1.08768183,3133.9,3133.1,0.13461063]
[1768301370466,0.15968,3134.3,3133.1,0.13461063]
[1768301370768,1.08768183,3133.8,3133.1,0.13461063]
[1768301372168,0.15968,3134.3,3133.1,0.13461063]
[1768301372473,1.08768183,3134.1,3133.2,1.08768183]
[1768301372769,1.08768183,3134.1,3133.3,0.13461063]
[1768301372966,1.42565,3134.9,3132.8,0.15976]
[1768301372967,0.15965,3134.9,3133.5,0.13461063]
[1768301373159,1.08768183,3134.4,3133.5,0.13461063]
[1768301373360,0.95962813,3134.3,3133.5,0.13461063]
[1768301375269,1.08768183,3134.2,3133.5,0.13461063]
[1768301379779,1.08768183,3134.4,3133.5,0.13461063]
[1768301380079,0.96550706,3134.3,3133.6,1.22788205]
[1768301380376,1.08768183,3134.5,3133.6,1.22788205]
[1768301380576,0.96550089,3134.4,3133.6,1.22788205]
[1768301380878,0.96550089,3134.3,3133.6,1.22788205]
[1768301381076,1.08768183,3134.5,3133.6,1.22788205]
[1768301381277,0.96549502,3134.4,3133.6,1.22788205]
[1768301381480,0.96549502,3134.3,3133.6,1.22788205]
[1768301381677,1.08768183,3134.5,3133.6,1.22788205]
[1768301381878,0.96550176,3134.4,3133.6,1.22788205]
[1768301382083,0.96550176,3134.3,3133.6,1.22788205]
[1768301382280,1.08768183,3134.5,3133.6,1.22788205]
[1768301382484,0.96549598,3134.4,3133.6,1.22788205]
[1768301382683,0.96549598,3134.3,3133.6,1.22788205]
[1768301382980,1.08768183,3134.5,3133.6,1.22788205]
[1768301383181,0.96549377,3134.4,3133.6,1.22788205]
[1768301383382,0.96549377,3134.3,3133.6,1.22788205]
[1768301383577,1.08768183,3134.5,3133.6,1.22788205]
[1768301383785,0.96549204,3134.4,3133.6,1.22788205]
[1768301383982,0.96549204,3134.3,3133.6,1.22788205]
[1768301384182,1.08768183,3134.5,3133.6,1.22788205]
[1768301384484,0.96572001,3134.4,3133.6,1.22788205]
[1768301384683,0.96572001,3134.3,3133.6,1.22788205]
[1768301384878,1.08768183,3134.5,3133.6,1.22788205]
[1768301385184,0.96584442,3134.4,3133.6,1.22788205]
[1768301385380,0.96584442,3134.3,3133.6,1.22788205]
[1768301385580,1.08768183,3134.5,3133.6,1.22788205]
[1768301385883,0.96584435,3134.4,3133.6,1.22788205]
[1768301386075,0.96584435,3134.3,3133.6,1.22788205]
[1768301386278,1.08768183,3134.5,3133.6,1.22788205]
[1768301386479,0.96583832,3134.4,3133.6,1.22788205]
[1768301386784,0.96583832,3134.3,3133.6,1.22788205]
[1768301386983,1.08768183,3134.5,3133.6,1.22788205]
[1768301387188,0.96583755,3134.4,3133.6,1.22788205]
[1768301387380,1.08768183,3134.5,3133.6,1.22788205]
[1768301387677,0.96584092,3134.4,3133.6,1.22788205]
[1768301387875,1.08768183,3134.5,3133.6,1.22788205]
[1768301388080,0.96586089,3134.4,3133.6,1.22788205]
[1768301388278,1.08768183,3134.5,3133.6,1.22788205]
[1768301388580,0.96581286,3134.4,3133.6,1.22788205]
[1768301388780,1.08768183,3134.5,3133.6,1.22788205]
[1768301388985,0.96581364,3134.4,3133.6,1.22788205]
[1768301389187,1.08768183,3134.5,3133.6,1.22788205]
[1768301389383,0.96573814,3134.4,3133.6,1.22788205]
[1768301389576,1.08768183,3134.5,3133.6,1.22788205]
[1768301389786,0.96573823,3134.4,3133.6,1.22788205]
[1768301389985,1.08768183,3134.5,3133.6,0.14020022]
[1768301390185,0.96573816,3134.4,3133.6,1.22788205]
[1768301390386,1.08768183,3134.5,3133.6,1.22788205]
[1768301390587,0.96568388,3134.4,3133.6,1.22788205]
[1768301390786,1.08768183,3134.5,3133.6,1.22788205]
[1768301390984,0.96568092,3134.4,3133.6,1.22788205]
[1768301391184,1.08768183,3134.5,3133.6,1.22788205]
[1768301391481,0.9655881,3134.4,3133.6,1.22788205]
[1768301391678,1.08768183,3134.5,3133.6,1.22788205]
[1768301391888,0.96558541,3134.4,3133.6,1.22788205]
[1768301392091,1.08768183,3134.5,3133.7,0.14020022]
[1768301392394,0.9655912,3134.4,3133.7,0.14020022]
[1768301392586,1.08768183,3134.5,3133.7,0.14020022]
[1768301392884,0.96559246,3134.4,3133.7,0.14020022]
[1768301393086,1.08768183,3134.5,3133.7,0.14020022]
[1768301393287,0.96566748,3134.4,3133.7,0.14020022]
[1768301393487,1.08768183,3134.5,3133.7,0.14020022]
[1768301393682,0.96566836,3134.4,3133.7,0.14020022]
[1768301393886,1.08768183,3134.5,3133.7,0.14020022]
[1768301394084,0.96568307,3134.4,3133.7,0.14020022]
[1768301394284,1.08768183,3134.5,3133.7,0.14020022]
[1768301394494,0.96573543,3134.4,3133.7,0.14020022]
[1768301394797,1.08768183,3134.5,3133.7,0.14020022]
[1768301394995,0.96573519,3134.4,3133.7,0.14020022]
[1768301395186,1.08768183,3134.5,3133.7,0.14020022]
[1768301395383,0.96580036,3134.4,3133.7,0.14020022]
[1768301395597,1.08768183,3134.5,3133.7,0.14020022]
[1768301395794,0.96578438,3134.4,3133.7,0.14020022]
[1768301395995,1.08768183,3134.5,3133.7,0.14020022]
[1768301396294,0.96586832,3134.4,3133.7,0.14020022]
[1768301396497,1.08768183,3134.5,3133.7,0.14020022]
[1768301396686,0.96586829,3134.4,3133.7,0.14020022]
[1768301396888,1.08768183,3134.5,3133.7,0.14020022]
[1768301397089,0.96586736,3134.4,3133.7,0.14020022]
[1768301397288,1.08768183,3134.5,3133.7,0.14020022]
[1768301397498,0.9659715,3134.4,3133.7,0.14020022]
[1768301397697,1.08768183,3134.5,3133.7,0.14020022]
[1768301397998,0.9659715,3134.4,3133.7,0.14020022]
[1768301398298,1.08768183,3134.5,3133.7,0.14020022]
[1768301398499,0.96610552,3134.4,3133.7,0.14020022]
[1768301398700,1.08768183,3134.5,3133.7,0.14020022]
[1768301398898,0.96610552,3134.4,3133.7,0.14020022]
[1768301399097,1.08768183,3134.5,3133.7,0.14020022]
[1768301399299,0.96627172,3134.4,3133.7,0.14020022]
[1768301399596,1.08768183,3134.5,3133.7,0.14020022]
[1768301399797,0.96627176,3134.4,3133.7,0.14020022]
[1768301400106,1.08768183,3134.5,3133.7,0.14020022]
[1768301400107,0.96644808,3134.3,3133.7,0.14020022]
[1768301400295,1.08768183,3134.5,3133.7,0.14020022]
[1768301400496,0.96645961,3134.4,3133.7,0.14020022]
[1768301400696,1.08768183,3134.5,3133.7,0.14020022]
[1768301400897,0.96645959,3134.4,3133.7,0.14020022]
[1768301401201,0.96670058,3134.3,3133.7,0.14020022]
[1768301401406,1.08768183,3134.5,3133.7,0.14020022]
[1768301401602,0.96670227,3134.4,3133.7,0.14020022]
[1768301401804,1.08768183,3134.5,3133.7,0.14020022]
[1768301401805,0.96670227,3134.3,3133.7,0.14020022]
[1768301402000,1.08768183,3134.5,3133.7,0.14020022]
[1768301402199,0.96698324,3134.4,3133.7,0.14020022]
[1768301402400,0.96698324,3134.3,3133.7,0.14020022]
[1768301402601,1.08768183,3134.5,3133.7,0.14020022]
[1768301402800,0.96699351,3134.4,3133.7,0.14020022]
[1768301403101,0.96699351,3134.3,3133.7,0.14020022]
[1768301403301,1.08768183,3134.5,3133.7,0.14020022]
[1768301403495,0.9670173,3134.4,3133.7,0.14020022]
[1768301403696,0.9670173,3134.3,3133.7,0.14020022]
[1768301403896,1.08768183,3134.5,3133.7,0.14020022]
[1768301404097,0.96701523,3134.4,3133.7,0.14020022]
[1768301404297,0.96701523,3134.3,3133.7,0.14020022]
[1768301404500,1.08768183,3134.5,3133.7,0.14020022]
[1768301404701,0.96702791,3134.4,3133.7,0.14020022]
[1768301405010,0.96702791,3134.3,3133.7,0.14020022]
[1768301405202,1.08768183,3134.5,3133.7,0.14020022]
[1768301405406,0.96704579,3134.4,3133.7,0.14020022]
[1768301405608,0.96704579,3134.3,3133.7,0.14020022]
[1768301405810,1.08768183,3134.5,3133.7,0.14020022]
[1768301406112,0.96633244,3134.4,3133.7,0.14020022]
[1768301406308,0.96633244,3134.3,3133.7,0.14020022]
[1768301406507,1.08768183,3134.5,3133.7,0.14020022]
[1768301406709,0.96635901,3134.4,3133.7,0.14020022]
[1768301407015,0.96635901,3134.3,3133.7,0.14020022]
[1768301407311,1.08768183,3134.6,3133.8,1.23115032]
[1768301407508,0.9663893,3134.5,3133.8,1.23115032]
[1768301407701,0.9663893,3134.4,3133.8,1.23115032]
[1768301407900,0.9663893,3134.3,3133.8,1.23115032]
[1768301408098,1.08768183,3134.6,3133.8,1.23115032]
[1768301408313,0.96642752,3134.5,3133.8,1.23115032]
[1768301408511,0.96642752,3134.4,3133.8,1.23115032]
[1768301408714,0.96642752,3134.3,3133.8,1.23115032]
[1768301408914,1.08768183,3134.6,3133.8,1.23115032]
[1768301409115,0.9664136,3134.5,3133.8,1.23115032]
[1768301409413,0.9664136,3134.4,3133.8,1.23115032]
[1768301409611,0.9664136,3134.3,3133.8,1.23115032]
[1768301409812,1.08768183,3134.6,3133.8,1.23115032]
[1768301410113,0.9664529,3134.5,3133.8,1.23115032]
[1768301410316,0.9664529,3134.4,3133.8,1.23115032]
[1768301410502,0.9664529,3134.3,3133.8,1.23115032]
[1768301410698,1.08768183,3134.6,3133.8,1.23115032]
[1768301410906,0.9664484,3134.5,3133.8,1.23115032]
[1768301411104,0.9664484,3134.4,3133.8,1.23115032]
[1768301411309,0.9664484,3134.3,3133.8,0.14346849]
[1768301411508,0.15966,3134.8,3133.8,0.14346849]
[1768301411713,1.37229813,3134.7,3133.8,0.14346849]
[1768301412014,1.37229813,3134.6,3133.8,0.14346849]
[1768301412205,0.96644779,3134.5,3133.8,0.14346849]
[1768301412513,0.96644779,3134.4,3133.8,0.14346849]
[1768301412814,0.96644779,3134.3,3133.8,0.14346849]
[1768301413012,0.15966,3134.8,3133.8,0.14346849]
[1768301413212,0.40586923,3134.7,3133.9,0.14346849]
[1768301413401,0.0035187,3135.0,3134.1,0.14346849]
[1768301424919,0.9637242,3134.9,3134.1,0.14346849]
[1768301425119,0.0035187,3135.0,3134.1,0.14346849]
[1768301425417,0.96371706,3134.9,3134.1,0.14346849]
[1768301425717,0.0035187,3135.0,3134.1,0.14346849]
[1768301425920,0.96369985,3134.9,3134.1,0.14346849]
[1768301426219,0.0035187,3135.0,3134.1,0.14346849]
[1768301426410,0.96369012,3134.9,3134.1,0.14346849]
[1768301426612,0.0035187,3135.0,3134.1,0.14346849]
[1768301426811,0.9637586,3134.9,3134.1,0.14346849]
[1768301427012,0.0035187,3135.0,3134.1,0.14346849]
[1768301427212,0.96376122,3134.9,3134.1,0.14346849]
[1768301427511,0.0035187,3135.0,3134.1,0.14346849]
[1768301427711,0.96375929,3134.9,3134.1,0.14346849]
[1768301427913,0.0035187,3135.0,3134.1,0.14346849]
[1768301428114,0.96375912,3134.9,3134.1,0.14346849]
[1768301428314,0.0035187,3135.0,3134.1,0.14346849]
[1768301428515,0.96375602,3134.9,3134.1,0.14346849]
[1768301428730,0.0035187,3135.0,3134.1,0.14346849]
[1768301428929,0.96375652,3134.9,3134.1,0.14346849]
[1768301429223,0.0035187,3135.0,3134.1,0.14346849]
[1768301429429,0.96376818,3134.9,3134.1,0.14346849]
[1768301429720,0.0035187,3135.0,3134.1,0.14346849]
[1768301429921,0.96376126,3134.9,3134.1,0.14346849]
[1768301430123,0.0035187,3135.0,3134.1,0.14346849]
[1768301430322,0.96376271,3134.9,3134.1,0.14346849]
[1768301430514,0.0035187,3135.0,3134.1,0.14346849]
[1768301430714,0.96377206,3134.9,3134.1,0.14346849]
[1768301430914,0.0035187,3135.0,3134.1,0.14346849]
[1768301431120,0.9637712,3134.9,3134.1,0.14346849]
[1768301431316,0.0035187,3135.0,3134.1,0.14346849]